bitfinex/quotes_BTCUSD_20220202
["timestamp","ask_amount","ask_price","bid_price","bid_amount"]
[1643825883321,1.36190463,37485.0,37472.0,0.133436]
[1643825883518,0.23874473,37481.0,37476.0,0.25916316]
[1643825883720,0.89244487,37480.0,37476.0,0.25916316]
[1643825883922,0.353973,37479.0,37476.0,0.30916316]
[1643825884318,0.27715831,37480.0,37476.0,0.35916316]
[1643825884319,0.02249968,37480.0,37476.0,0.35916316]
[1643825885064,0.02750032,37480.0,37476.0,0.35916316]
[1643825885258,0.02750032,37480.0,37477.0,0.066716]
[1643825886360,0.02750032,37480.0,37478.0,0.06671]
[1643825886757,0.02678967,37480.0,37478.0,0.11671]
[1643825886957,0.34882289,37487.0,37480.0,0.066705]
[1643825886958,0.02321033,37482.0,37480.0,0.066705]
[1643825887960,0.02678967,37484.0,37480.0,0.066705]
[1643825888157,0.353973,37483.0,37480.0,0.13341]
[1643825888358,0.02678967,37484.0,37480.0,0.250115]
[1643825888802,0.02678967,37484.0,37480.0,0.11726289]
[1643825889909,0.59534127,37483.0,37480.0,0.1]
[1643825890105,0.353973,37482.0,37480.0,0.05055788]
[1643825890305,1.88688012,37481.0,37480.0,0.05055788]
[1643825890504,2.24085312,37481.0,37480.0,0.05055788]
[1643825890906,2.48619466,37481.0,37480.0,0.00055788]
[1643825891205,0.07671562,37480.0,37479.0,0.00055831]
[1643825891406,1.83068862,37480.0,37479.0,0.00055831]
[1643825892205,1.83068862,37480.0,37477.0,0.05]
[1643825892458,0.353973,37479.0,37478.0,0.00056655]
[1643825892658,0.69929605,37479.0,37478.0,0.00056655]
[1643825893260,2.04929605,37479.0,37478.0,0.00056655]
[1643825893456,2.04929605,37479.0,37477.0,0.05]
[1643825893657,2.153973,37478.0,37477.0,0.05]
[1643825893857,2.153973,37478.0,37477.0,0.05056655]
[1643825894658,0.24954533,37476.0,37473.0,0.00010599]
[1643825894860,0.353973,37475.0,37473.0,0.00010599]
[1643825895063,0.24954533,37476.0,37473.0,0.00010599]
[1643825895260,0.353973,37475.0,37472.0,0.06683599]
[1643825895457,0.02321033,37477.0,37472.0,0.06683599]
[1643825895861,0.353973,37476.0,37472.0,0.00010599]
[1643825896060,0.353973,37476.0,37473.0,0.00055678]
[1643825896514,0.353973,37476.0,37473.0,0.00066277]
[1643825896515,0.1,37475.0,37473.0,0.00066277]
[1643825896712,2.58624754,37474.0,37473.0,0.00066277]
[1643825897109,2.73624754,37474.0,37473.0,0.00010599]
[1643825897336,2.73624754,37474.0,37472.0,0.05055679]
[1643825897510,2.2929928,37473.0,37472.0,0.05055679]
[1643825897913,2.2929928,37473.0,37472.0,0.00055679]
[1643825898310,2.2929928,37473.0,37465.0,0.00010599]
[1643825898513,2.12071532,37472.0,37471.0,0.00056079]
[1643825898709,2.22071532,37472.0,37471.0,0.00056079]
[1643825899110,2.153973,37472.0,37471.0,0.00056079]
[1643825899309,0.453973,37472.0,37471.0,0.00056079]
[1643825899511,0.453973,37472.0,37469.0,0.05]
[1643825899711,0.353973,37471.0,37470.0,0.00056081]
[1643825899957,0.1,37472.0,37470.0,0.00056081]
[1643825900362,0.02321033,37473.0,37470.0,0.0006668]
[1643825900659,0.353973,37472.0,37470.0,0.00010599]
[1643825900858,0.353973,37472.0,37469.0,0.05056082]
[1643825901058,0.02678967,37473.0,37470.0,0.066731]
[1643825901460,0.02678967,37473.0,37470.0,0.06683699]
[1643825901662,0.02678967,37473.0,37470.0,0.30514238]
[1643825902063,0.02678967,37473.0,37470.0,0.30573845]
[1643825903064,0.02678967,37473.0,37470.0,0.30514238]
[1643825903272,0.02678967,37473.0,37471.0,0.05]
[1643825903463,0.02678967,37473.0,37471.0,0.11682799]
[1643825904610,0.00019667,37472.0,37471.0,0.11682799]
[1643825904809,0.00019667,37472.0,37471.0,0.72563881]
[1643825905210,0.00019667,37472.0,37471.0,1.58543881]
[1643825907212,0.00019667,37472.0,37471.0,1.98543881]
[1643825908059,0.00019667,37472.0,37471.0,1.58543881]
[1643825909060,0.00018028,37487.0,37476.0,0.066705]
[1643825909261,0.00018028,37488.0,37479.0,0.066703]
[1643825909465,0.00018028,37488.0,37480.0,0.29566709]
[1643825909658,0.00018028,37488.0,37481.0,0.0598]
[1643825909860,0.00077575,37489.0,37483.0,0.28589791]
[1643825910161,0.05,37487.0,37484.0,0.0598]
[1643825910360,0.05,37487.0,37484.0,0.1098]
[1643825910860,0.05,37487.0,37484.0,0.176499]
[1643825911062,0.353973,37486.0,37484.0,0.1098]
[1643825911317,1.82765202,37485.0,37484.0,0.1098]
[1643825911515,2.18162502,37485.0,37484.0,0.1098]
[1643825912715,2.33162502,37485.0,37483.0,0.05]
[1643825912915,1.853973,37484.0,37483.0,0.05]
[1643825913120,1.753973,37484.0,37483.0,0.05059572]
[1643825914017,1.753973,37484.0,37479.0,0.29815808]
[1643825914217,1.4,37484.0,37482.0,0.0004851]
[1643825914419,1.553973,37483.0,37482.0,0.0004851]
[1643825914620,1.653973,37483.0,37482.0,0.0004851]
[1643825915063,1.653973,37483.0,37480.0,0.04933379]
[1643825915064,1.45,37482.0,37480.0,0.04933379]
[1643825915261,1.803973,37481.0,37480.0,0.04933379]
[1643825915464,2.03104608,37481.0,37480.0,0.04933379]
[1643825915668,2.18104608,37481.0,37480.0,0.04933379]
[1643825916064,2.52112302,37481.0,37480.0,0.04933379]
[1643825916264,3.09147652,37481.0,37479.0,0.01952004]
[1643825916463,3.09147652,37481.0,37478.0,0.00066621]
[1643825916464,2.40544818,37480.0,37478.0,0.00066621]
[1643825916665,2.30765613,37479.0,37478.0,0.00066621]
[1643825916864,2.46745613,37479.0,37478.0,0.00066621]
[1643825917064,2.69854946,37479.0,37478.0,0.00066621]
[1643825917465,3.77663928,37479.0,37478.0,0.00066621]
[1643825917666,3.59554595,37479.0,37478.0,0.00066621]
[1643825918816,3.50495654,37479.0,37478.0,0.00066621]
[1643825919217,3.29186282,37479.0,37478.0,0.00066621]
[1643825919414,3.42533405,37479.0,37477.0,0.00050534]
[1643825919615,2.39143154,37478.0,37477.0,0.00050534]
[1643825920016,2.39143154,37478.0,37476.0,0.04933379]
[1643825920218,1.13788982,37479.0,37476.0,0.04933379]
[1643825920219,1.053973,37477.0,37476.0,0.04983914]
[1643825921022,1.053973,37477.0,37476.0,0.00050535]
[1643825921221,1.053973,37477.0,37474.0,0.00066621]
[1643825921420,0.353973,37476.0,37475.0,0.00049767]
[1643825922117,0.60280692,37476.0,37475.0,0.00049767]
[1643825922317,0.353973,37476.0,37474.0,0.00010599]
[1643825922558,0.353973,37476.0,37474.0,0.05010599]
[1643825922756,0.35367661,37476.0,37474.0,0.05060368]
[1643825923557,0.35367661,37476.0,37474.0,0.05010599]
[1643825924554,0.35367661,37476.0,37474.0,0.04610599]
[1643825924755,0.00020894,37476.0,37474.0,0.04610599]
[1643825924956,0.353994,37475.0,37474.0,0.04610599]
[1643825925558,0.353994,37475.0,37474.0,0.00010599]
[1643825925856,0.353994,37475.0,37473.0,0.04983361]
[1643825926062,0.353994,37475.0,37473.0,0.04933379]
[1643825926314,1.82628673,37474.0,37473.0,0.04933379]
[1643825926516,2.18028073,37474.0,37473.0,0.04933379]
[1643825927013,1.22325705,37472.0,37471.0,0.00066621]
[1643825927212,1.57725105,37472.0,37471.0,0.00066621]
[1643825928012,1.57725105,37472.0,37469.0,0.04933379]
[1643825928214,0.453994,37471.0,37469.0,0.04943978]
[1643825928413,0.353994,37470.0,37469.0,0.04943978]
[1643825928616,0.1,37471.0,37469.0,0.04943978]
[1643825928814,0.1,37471.0,37470.0,0.23553308]
[1643825929015,0.1,37471.0,37470.0,0.23563907]
[1643825929414,0.05020894,37476.0,37470.0,0.23563907]
[1643825929618,0.353994,37475.0,37470.0,0.23563907]
[1643825929815,0.00020965,37472.0,37470.0,0.23563907]
[1643825930959,0.803994,37471.0,37470.0,0.00010599]
[1643825931268,0.903994,37471.0,37469.0,0.04991679]
[1643825931460,0.353994,37470.0,37469.0,0.04991679]
[1643825931861,0.803994,37470.0,37469.0,0.000583]
[1643825932062,0.353994,37470.0,37468.0,0.26859509]
[1643825932262,0.00020965,37472.0,37468.0,0.26907211]
[1643825932662,0.4995557,37469.0,37468.0,0.26907211]
[1643825932861,0.4995557,37469.0,37468.0,0.2024451]
[1643825933062,0.0995557,37469.0,37468.0,0.2024451]
[1643825933267,0.05,37471.0,37468.0,0.20186209]
[1643825933467,0.05,37471.0,37468.0,0.2517561]
[1643825933926,0.05,37471.0,37468.0,0.2017561]
[1643825934124,0.05,37471.0,37468.0,0.20186209]
[1643825934524,0.05,37471.0,37469.0,0.06673]
[1643825934724,0.05,37471.0,37468.0,0.20230491]
[1643825935724,0.05,37471.0,37468.0,0.2017561]
[1643825935926,0.353994,37470.0,37468.0,0.20230491]
[1643825936124,0.04989,37471.0,37468.0,0.2024109]
[1643825937025,0.04989,37471.0,37468.0,0.20186209]
[1643825937226,0.04989,37471.0,37468.0,0.20243419]
[1643825937656,0.45410106,37470.0,37468.0,0.00067809]
[1643825937862,0.58079222,37469.0,37468.0,0.00067809]
[1643825938057,0.58079222,37469.0,37468.0,0.00010599]
[1643825938257,0.58465881,37469.0,37467.0,0.0674131]
[1643825938457,0.5785116,37468.0,37467.0,0.0674131]
[1643825938659,0.353994,37468.0,37467.0,0.27913926]
[1643825938856,0.22454366,37470.0,37467.0,0.27913926]
[1643825939063,0.353994,37469.0,37467.0,0.27913926]
[1643825939256,0.353994,37469.0,37467.0,0.27856715]
[1643825939657,0.353994,37469.0,37467.0,0.27913927]
[1643825940257,0.1,37468.0,37467.0,0.27913927]
[1643825940657,0.1,37468.0,37467.0,0.27856715]
[1643825940960,0.22475366,37470.0,37467.0,0.27856715]
[1643825940961,0.00021,37470.0,37467.0,0.27856715]
[1643825942030,0.00021,37470.0,37467.0,0.27912646]
[1643825943030,0.00021,37470.0,37467.0,0.27856715]
[1643825943233,0.00021,37470.0,37467.0,0.27912646]
[1643825944235,0.00021,37470.0,37467.0,0.27856715]
[1643825944432,0.00021,37470.0,37467.0,0.27911999]
[1643825944636,0.00021,37470.0,37467.0,0.00065883]
[1643825944637,0.25210896,37470.0,37467.0,0.00065883]
[1643825944835,0.353994,37469.0,37467.0,0.00065883]
[1643825945080,0.353994,37469.0,37454.0,1.65073365]
[1643825945081,0.05,37465.0,37450.0,0.33783365]
[1643825945284,0.05144011,37466.0,37449.0,0.001]
[1643825945285,0.1,37459.0,37449.0,0.001]
[1643825945484,0.1,37456.0,37449.0,0.00110626]
[1643825945782,0.08299869,37454.0,37449.0,0.00110626]
[1643825945977,0.407394,37453.0,37449.0,0.00110626]
[1643825946179,1.33482688,37452.0,37449.0,0.00110626]
[1643825946385,1.33482688,37452.0,37446.0,0.001]
[1643825946386,1.7,37450.0,37446.0,0.001]
[1643825946588,0.6023408,37449.0,37446.0,0.001]
[1643825946784,0.353994,37448.0,37446.0,0.001]
[1643825946979,0.80046,37447.0,37446.0,0.001]
[1643825947180,1.254454,37447.0,37446.0,0.001]
[1643825949212,1.93145216,37446.0,37445.0,0.0005843]
[1643825949416,2.73191216,37446.0,37445.0,0.0005843]
[1643825949611,3.23590616,37446.0,37445.0,0.0005843]
[1643825950215,3.23590616,37446.0,37444.0,0.05]
[1643825950412,2.43853834,37445.0,37444.0,0.05058431]
[1643825950615,3.23899834,37445.0,37444.0,0.05058431]
[1643825951015,1.53899834,37445.0,37444.0,0.00058431]
[1643825951416,1.43899834,37445.0,37441.0,0.01]
[1643825951615,1.353994,37444.0,37443.0,0.00058433]
[1643825951817,2.154454,37444.0,37443.0,0.00058433]
[1643825952665,2.154454,37444.0,37441.0,0.06]
[1643825952866,0.353994,37443.0,37441.0,0.06]
[1643825953070,0.80046,37444.0,37442.0,0.2339026]
[1643825953367,0.80046,37444.0,37441.0,0.06]
[1643825953867,0.32209895,37443.0,37441.0,0.06]
[1643825954065,0.32209895,37443.0,37441.0,0.06058436]
[1643825954066,0.353994,37442.0,37441.0,0.06058436]
[1643825954672,3.48522136,37442.0,37441.0,0.06058436]
[1643825954867,3.98921536,37442.0,37441.0,0.01058436]
[1643825955069,3.98921536,37442.0,37441.0,0.01]
[1643825955665,4.23464614,37442.0,37441.0,0.01]
[1643825956066,4.08464614,37442.0,37441.0,0.01]
[1643825956349,4.23464614,37442.0,37441.0,0.01]
[1643825956750,2.48921536,37442.0,37441.0,0.01]
[1643825956952,0.80067463,37444.0,37441.0,0.01]
[1643825957749,0.80067463,37444.0,37442.0,0.23961452]
[1643825957949,0.80067463,37444.0,37442.0,0.30638452]
[1643825958151,0.80067463,37444.0,37442.0,0.35638452]
[1643825959751,0.80035343,37444.0,37442.0,0.35638452]
[1643825961371,0.80035343,37444.0,37443.0,0.066767]
[1643825961570,0.80035343,37444.0,37443.0,0.06687316]
[1643825961973,0.80035343,37444.0,37443.0,0.06187316]
[1643825962275,0.80035343,37444.0,37443.0,0.34848492]
[1643825962475,0.80035343,37444.0,37443.0,1.14848492]
[1643825962873,0.80035343,37444.0,37443.0,1.50247892]
[1643825965315,0.80035343,37444.0,37443.0,1.60247892]
[1643825965512,0.80035343,37444.0,37443.0,1.95247892]
[1643825965713,0.80035343,37444.0,37443.0,1.60247892]
[1643825966513,0.80035343,37444.0,37443.0,1.50247892]
[1643825967562,0.80035343,37444.0,37443.0,1.60247892]
[1643825968258,0.80035343,37444.0,37443.0,1.65247892]
[1643825968461,0.3764,37463.0,37445.0,1.7]
[1643825968661,0.3764,37463.0,37450.0,0.066747]
[1643825968662,0.0005794,37463.0,37450.0,0.066747]
[1643825968861,0.0005794,37463.0,37451.0,0.32484384]
[1643825969062,0.0005794,37463.0,37452.0,0.353994]
[1643825969261,0.05,37459.0,37453.0,0.35766767]
[1643825969460,0.05,37459.0,37454.0,1.20423801]
[1643825969659,0.05,37459.0,37455.0,0.300308]
[1643825969860,0.05,37459.0,37455.0,0.35041416]
[1643825970060,0.05,37459.0,37456.0,0.066739]
[1643825970268,0.05,37459.0,37457.0,0.0534]
[1643825971063,0.00059303,37463.0,37457.0,0.28996282]
[1643825971314,0.00059303,37463.0,37461.0,0.133474]
[1643825971508,0.00059303,37463.0,37461.0,0.253611]
[1643825971707,0.00059303,37463.0,37461.0,0.303611]
[1643825971910,0.001,37469.0,37461.0,0.303611]
[1643825972109,0.05,37465.0,37461.0,0.303611]
[1643825972309,0.00059306,37464.0,37461.0,0.303611]
[1643825973111,0.05,37465.0,37461.0,0.303611]
[1643825973510,0.00059306,37464.0,37461.0,0.303611]
[1643825974310,0.05,37465.0,37461.0,0.303611]
[1643825974709,0.00059306,37464.0,37461.0,0.303611]
[1643825975167,0.00059306,37464.0,37461.0,0.186875]
[1643825975362,0.00059306,37464.0,37460.0,0.05]
[1643825975561,0.29945809,37465.0,37460.0,0.05]
[1643825975562,0.353994,37463.0,37460.0,0.05]
[1643825975765,0.1,37462.0,37460.0,0.05]
[1643825976060,2.10987836,37461.0,37460.0,0.05]
[1643825976461,2.20987836,37461.0,37460.0,0.05]
[1643825977060,2.20987836,37461.0,37459.0,0.00053562]
[1643825977261,2.003994,37460.0,37459.0,0.00053562]
[1643825977860,2.003994,37460.0,37455.0,0.01990792]
[1643825978061,0.353994,37459.0,37458.0,0.00053564]
[1643825978365,1.303994,37459.0,37458.0,0.00053564]
[1643825979228,1.303994,37459.0,37457.0,0.05010616]
[1643825979427,1.58425004,37458.0,37457.0,0.0505646]
[1643825979625,1.353994,37458.0,37457.0,0.0505646]
[1643825980023,1.353994,37458.0,37457.0,0.0005646]
[1643825980428,1.353994,37458.0,37455.0,0.00010616]
[1643825980626,0.353994,37457.0,37456.0,0.00054794]
[1643825980930,0.5827597,37457.0,37456.0,0.00054794]
[1643825981327,1.5327597,37457.0,37456.0,0.00054794]
[1643825981528,1.5327597,37457.0,37455.0,0.00010616]
[1643825981529,1.303994,37457.0,37455.0,0.00010616]
[1643825981727,0.95,37457.0,37454.0,0.11686116]
[1643825982031,1.02433404,37456.0,37455.0,0.00054794]
[1643825982229,1.02433404,37456.0,37455.0,0.0006541]
[1643825982777,1.02433404,37456.0,37455.0,0.00010616]
[1643825982977,1.02433404,37456.0,37454.0,0.11725694]
[1643825983581,0.6,37455.0,37454.0,0.11725694]
[1643825983978,0.6,37455.0,37454.0,0.066755]
[1643825984178,0.23563408,37459.0,37454.0,0.066755]
[1643825984380,0.05,37460.0,37455.0,0.06675]
[1643825984580,0.05,37460.0,37457.0,0.066748]
[1643825985580,0.05,37460.0,37457.0,0.0672499]
[1643825986411,0.05,37460.0,37457.0,0.066748]
[1643825986612,0.05,37460.0,37457.0,0.06728626]
[1643825986813,0.05,37460.0,37457.0,0.12068626]
[1643825987510,0.05,37460.0,37457.0,0.120148]
[1643825987710,0.05,37460.0,37457.0,0.12068626]
[1643825988311,0.05,37460.0,37457.0,0.11568626]
[1643825988716,0.05,37460.0,37457.0,0.115148]
[1643825988912,0.05,37460.0,37457.0,0.11568626]
[1643825989963,0.00019999,37459.0,37457.0,0.115148]
[1643825990163,0.00019999,37459.0,37457.0,0.11568966]
[1643825991266,0.00019999,37459.0,37457.0,0.115148]
[1643825991864,1.153994,37458.0,37457.0,0.115148]
[1643825992267,0.353994,37458.0,37457.0,0.115148]
[1643825992467,0.00019999,37459.0,37457.0,0.115148]
[1643825993367,0.00019999,37459.0,37456.0,0.05054168]
[1643825993368,1.453994,37458.0,37456.0,0.05054168]
[1643825993568,1.503994,37457.0,37456.0,0.05]
[1643825993819,1.503994,37457.0,37456.0,0.05053956]
[1643825994014,1.503994,37457.0,37456.0,0.00053956]
[1643825994015,0.353994,37457.0,37456.0,0.00053956]
[1643825994215,0.00019999,37459.0,37456.0,0.00053956]
[1643825994817,0.00020017,37458.0,37455.0,0.06686116]
[1643825995018,0.00020017,37458.0,37456.0,0.00053956]
[1643825995918,0.00020017,37458.0,37455.0,0.06686116]
[1643825996119,0.00020017,37458.0,37455.0,0.06740073]
[1643825996323,0.04987873,37460.0,37455.0,0.06740073]
[1643825997118,0.04987873,37460.0,37455.0,0.06686116]
[1643825997319,0.04987873,37460.0,37456.0,0.00054165]
[1643825998167,0.53866364,37457.0,37456.0,0.00054165]
[1643825998368,0.89265764,37457.0,37455.0,0.066755]
[1643825998567,0.45,37457.0,37455.0,0.066755]
[1643825998871,0.04987873,37460.0,37456.0,0.00054164]
[1643825999867,0.00017998,37459.0,37456.0,0.00108328]
[1643826000167,0.07908702,37458.0,37456.0,0.00054164]
[1643826000770,0.07908702,37458.0,37455.0,0.133502]
[1643826000771,0.07908702,37458.0,37455.0,0.266994]
[1643826000967,0.00017998,37459.0,37455.0,0.31747092]
[1643826001215,0.00017998,37459.0,37456.0,0.0534]
[1643826002214,0.00017998,37459.0,37456.0,0.05387692]
[1643826002614,0.00017998,37459.0,37457.0,0.066745]
[1643826003017,0.00017998,37459.0,37458.0,1.557394]
[1643826003220,0.00017998,37459.0,37458.0,1.657394]
[1643826003918,0.00017998,37459.0,37458.0,1.98906156]
[1643826004318,0.00017998,37459.0,37458.0,2.65686156]
[1643826004518,0.001,37469.0,37462.0,0.066722]
[1643826004720,0.001,37469.0,37463.0,0.590838]
[1643826004965,0.051,37469.0,37464.0,0.353994]
[1643826005165,0.051,37469.0,37465.0,0.30140443]
[1643826005370,0.051,37469.0,37466.0,0.20166238]
[1643826005565,0.051,37469.0,37468.0,0.26547592]
[1643826005767,0.051,37469.0,37468.0,0.36887592]
[1643826006067,0.60154241,37469.0,37468.0,0.1034]
[1643826006266,0.60154241,37469.0,37468.0,0.0534]
[1643826006766,0.601,37469.0,37468.0,0.0534]
[1643826006967,1.201,37469.0,37468.0,0.0534]
[1643826007571,3.61196302,37469.0,37468.0,0.0534]
[1643826007770,3.96595702,37469.0,37468.0,0.0534]
[1643826008569,3.96341024,37469.0,37468.0,0.0534]
[1643826009424,1.55244722,37469.0,37468.0,0.0534]
[1643826009620,0.95244722,37469.0,37468.0,0.0534]
[1643826009822,0.353994,37469.0,37468.0,0.0534]
[1643826010021,0.25652092,37470.0,37468.0,0.0534]
[1643826010424,0.0001602,37469.0,37468.0,0.0534]
[1643826011624,0.0001602,37469.0,37468.0,0.1034]
[1643826012028,1.0501602,37469.0,37468.0,0.1034]
[1643826012462,0.0001602,37469.0,37468.0,0.1034]
[1643826012662,0.0001602,37469.0,37468.0,0.0534]
[1643826013863,0.21368834,37469.0,37468.0,0.0534]
[1643826014264,0.0001602,37469.0,37468.0,0.0534]
[1643826014663,0.0001602,37469.0,37468.0,0.1034]
[1643826014864,0.6501602,37469.0,37468.0,0.0534]
[1643826015065,1.0041542,37469.0,37468.0,0.0534]
[1643826015363,1.2203119,37469.0,37468.0,0.0534]
[1643826015763,1.2203119,37469.0,37466.0,0.05]
[1643826016063,0.65966962,37468.0,37466.0,0.05]
[1643826016315,0.353994,37467.0,37466.0,0.05]
[1643826016715,0.30567562,37468.0,37466.0,0.05]
[1643826016917,1.153994,37467.0,37466.0,0.05]
[1643826018016,1.153994,37467.0,37461.0,0.01947192]
[1643826018218,0.30623805,37468.0,37461.0,0.01947192]
[1643826018415,0.30623805,37468.0,37459.0,0.00048025]
[1643826018818,0.30623805,37468.0,37461.0,0.26848023]
[1643826019117,0.30567562,37468.0,37462.0,0.05]
[1643826019317,0.00056412,37465.0,37462.0,0.05]
[1643826020179,0.05,37466.0,37462.0,0.05]
[1643826020378,0.00056412,37465.0,37462.0,0.05]
[1643826020980,0.09935376,37465.0,37462.0,0.05]
[1643826021482,0.09878964,37465.0,37462.0,0.05]
[1643826021680,0.09933269,37465.0,37462.0,0.05]
[1643826022485,0.6144038,37464.0,37462.0,0.05]
[1643826022682,2.053994,37463.0,37462.0,0.05]
[1643826023081,2.23512188,37463.0,37459.0,0.00048563]
[1643826023284,0.453994,37462.0,37459.0,0.00048563]
[1643826023485,0.5112995,37461.0,37459.0,0.00048563]
[1643826023716,2.053994,37460.0,37457.0,0.0214918]
[1643826024016,2.053994,37460.0,37457.0,0.02135661]
[1643826024017,0.353994,37459.0,37457.0,0.02135661]
[1643826024216,0.68362707,37459.0,37457.0,0.02135661]
[1643826024419,1.87026866,37457.0,37450.0,0.00194299]
[1643826024620,0.353994,37456.0,37450.0,0.00194299]
[1643826024820,0.20877078,37455.0,37450.0,0.00194299]
[1643826025016,0.353994,37454.0,37443.0,0.00010616]
[1643826025215,0.20877078,37455.0,37451.0,0.05048573]
[1643826025418,2.0832009,37452.0,37451.0,0.05048573]
[1643826025622,2.4371949,37452.0,37446.0,0.00194321]
[1643826025820,0.353994,37451.0,37446.0,0.00194321]
[1643826026018,0.453994,37451.0,37446.0,0.00194321]
[1643826026318,0.353994,37450.0,37446.0,0.05]
[1643826026818,1.16685798,37447.0,37446.0,0.05]
[1643826027018,1.52085198,37447.0,37443.0,0.00010616]
[1643826027323,1.16685798,37447.0,37443.0,0.00010616]
[1643826027563,1.16685798,37447.0,37442.0,0.25781515]
[1643826027965,0.05,37449.0,37442.0,0.30781515]
[1643826028165,0.05,37449.0,37442.0,0.35781515]
[1643826029765,0.00017376,37446.0,37442.0,0.35781515]
[1643826030167,0.00017376,37446.0,37444.0,0.00057531]
[1643826031067,0.00017376,37446.0,37443.0,0.00010616]
[1643826031318,0.00017376,37446.0,37443.0,0.00057532]
[1643826031722,2.36062894,37444.0,37443.0,0.00057532]
[1643826031920,2.71462294,37444.0,37443.0,0.00068148]
[1643826032320,2.71462294,37444.0,37443.0,0.00010616]
[1643826032522,2.71462294,37444.0,37442.0,0.07081186]
[1643826032719,1.253994,37443.0,37442.0,0.0713872]
[1643826032917,1.253994,37443.0,37442.0,0.0006815]
[1643826033322,0.353994,37443.0,37442.0,0.0006815]
[1643826033519,2.36062894,37444.0,37442.0,0.00010616]
[1643826033720,2.36062894,37444.0,37441.0,0.01055927]
[1643826034321,0.05,37445.0,37441.0,0.01066543]
[1643826034719,0.00017411,37444.0,37441.0,0.01010616]
[1643826034959,0.00017411,37444.0,37441.0,0.07688616]
[1643826035165,0.00017411,37444.0,37441.0,0.07738218]
[1643826035862,0.00017411,37444.0,37441.0,0.12738218]
[1643826036061,0.00017411,37444.0,37441.0,0.19365816]
[1643826036264,0.00017411,37444.0,37441.0,0.19415419]
[1643826036865,0.00017411,37444.0,37442.0,0.133535]
[1643826037167,0.00017411,37444.0,37443.0,2.40554821]
[1643826037564,0.00017411,37444.0,37443.0,2.69537838]
[1643826039215,0.00017411,37444.0,37443.0,0.99537838]
[1643826039416,0.00017411,37444.0,37443.0,0.76406017]
[1643826039716,0.00017411,37444.0,37443.0,0.62027016]
[1643826040114,0.00017411,37444.0,37443.0,0.17027016]
[1643826040719,0.00017411,37444.0,37443.0,0.87027016]
[1643826041517,0.00017411,37444.0,37443.0,0.17027016]
[1643826041717,0.00017411,37444.0,37443.0,0.67027016]
[1643826042563,0.00017411,37444.0,37443.0,1.32027016]
[1643826042971,0.00017411,37444.0,37443.0,1.67433616]
[1643826045366,0.05,37445.0,37443.0,1.67433616]
[1643826045367,0.1192,37456.0,37444.0,1.77852224]
[1643826045677,0.0672,37463.0,37449.0,0.066751]
[1643826045868,0.00054049,37459.0,37450.0,0.7103944]
[1643826046068,0.00054049,37459.0,37451.0,0.058808]
[1643826046321,0.05054049,37459.0,37452.0,0.63457679]
[1643826046522,0.05054049,37459.0,37458.0,0.066739]
[1643826046821,0.05,37459.0,37458.0,0.120139]
[1643826047022,0.00054061,37459.0,37458.0,0.170139]
[1643826047621,0.00054061,37459.0,37458.0,0.23688]
[1643826048022,0.05,37461.0,37458.0,0.1034]
[1643826048225,0.00057948,37460.0,37458.0,0.1034]
[1643826049221,0.05,37461.0,37458.0,0.1034]
[1643826049420,0.05059127,37461.0,37458.0,0.1034]
[1643826050362,0.05,37461.0,37458.0,0.1034]
[1643826050766,0.05059127,37461.0,37458.0,0.1034]
[1643826050964,0.05059127,37461.0,37458.0,0.170143]
[1643826051164,0.05059127,37461.0,37459.0,0.066744]
[1643826051663,0.05,37461.0,37459.0,0.066744]
[1643826052064,0.00059127,37462.0,37459.0,0.066744]
[1643826052463,0.354066,37461.0,37459.0,0.066744]
[1643826052663,0.00059127,37462.0,37459.0,0.066744]
[1643826052863,0.22598033,37463.0,37459.0,0.066744]
[1643826053065,0.35462649,37462.0,37459.0,0.066744]
[1643826053267,0.00056049,37462.0,37459.0,0.066744]
[1643826053468,0.00056049,37462.0,37460.0,0.066741]
[1643826053717,0.00056049,37462.0,37460.0,0.200219]
[1643826053916,0.00056049,37462.0,37461.0,0.23295856]
[1643826054117,0.05,37463.0,37461.0,0.13347]
[1643826054320,0.05056049,37463.0,37462.0,0.20122668]
[1643826054916,0.00056049,37463.0,37462.0,0.20122668]
[1643826055317,0.25875287,37468.0,37462.0,0.26796268]
[1643826055516,0.00039807,37464.0,37463.0,0.066737]
[1643826056517,0.05,37466.0,37463.0,0.066737]
[1643826056717,0.00054431,37465.0,37463.0,0.066737]
[1643826057577,0.05,37466.0,37463.0,0.066737]
[1643826057974,0.05054431,37466.0,37463.0,0.066737]
[1643826058776,0.05,37466.0,37463.0,0.066737]
[1643826059275,0.05056526,37466.0,37463.0,0.066737]
[1643826060077,0.05,37466.0,37463.0,0.066737]
[1643826060276,0.05059151,37466.0,37463.0,0.066737]
[1643826060977,0.05059151,37466.0,37464.0,0.2726629]
[1643826061219,0.05059151,37466.0,37464.0,0.066733]
[1643826061220,0.05,37466.0,37464.0,0.066733]
[1643826061415,0.05,37466.0,37463.0,0.066737]
[1643826061619,0.05059151,37466.0,37463.0,0.116737]
[1643826062420,0.05,37466.0,37463.0,0.116737]
[1643826062617,0.05,37466.0,37462.0,0.200203]
[1643826062821,0.05,37466.0,37461.0,0.05]
[1643826062822,0.354066,37465.0,37461.0,0.05]
[1643826063824,1.25,37461.0,37456.0,0.02100737]
[1643826064024,0.354066,37460.0,37456.0,0.02100737]
[1643826064217,0.24773125,37459.0,37456.0,0.02100737]
[1643826064417,0.354066,37458.0,37456.0,0.02100737]
[1643826065368,1.02600276,37457.0,37456.0,0.02100737]
[1643826065673,0.95,37457.0,37456.0,0.02100737]
[1643826066867,1.2873456,37457.0,37456.0,0.02100737]
[1643826067075,1.2873456,37457.0,37455.0,0.05]
[1643826067076,1.7,37456.0,37455.0,0.05]
[1643826067273,1.7,37456.0,37447.0,0.00010616]
[1643826067274,1.7,37455.0,37447.0,0.00010616]
[1643826067570,1.7,37455.0,37449.0,0.00055261]
[1643826067571,0.59797086,37454.0,37449.0,0.00055261]
[1643826067770,0.354066,37453.0,37449.0,0.00055261]
[1643826067970,0.49432894,37452.0,37449.0,0.00055261]
[1643826068168,0.354066,37451.0,37449.0,0.00055261]
[1643826068570,0.354066,37451.0,37448.0,0.05]
[1643826068827,2.06118512,37451.0,37449.0,0.00055257]
[1643826069033,2.054066,37450.0,37449.0,0.00055257]